[Event "Romanian-ch Youth Girls U14 2024"]
[Site "Eforie Nord"]
[Date "2024.04.12"]
[Round "1.1"]
[White "Sida, Flavia-Maria"]
[Black "Aldea, Maria-Antonia"]
[Result "0-1"]
[ECO "A50"]
[WhiteElo "1619"]
[BlackElo "1894"]
[Annotator "NA RC COMBH"]
[PlyCount "32"]
[EventDate "2024.04.10"]
[EventType "swiss"]
[EventCountry "ROU"]
[SourceTitle "playchess.com"]
[Source "ChessBase"]
[SourceQuality "1"]
[TimeControl "5400+30"]

1. d4 {[%emt 0:00:05]} Nf6 {[%emt 0:00:06]} 2. c4 {[%emt 0:00:04]} b6 {[%emt 0:00:04]} 3. Nf3 {[%emt 0:00:12]} Bb7 {[%emt 0:00:06]} 4. g3 {[%emt 0:00:31]} c5 {[%emt 0:00:14]} 5. d5 {[%emt 0:02:55]} b5 {[%emt 0:00:18]} 6. cxb5 {[%emt 0:02:50]} Bxd5 {[%emt 0:00:30]} 7. Nc3 {[%emt 0:00:33]} Bb7 {[%emt 0:00:50]} 8. Bf4 {[%emt 0:01:03]} d5 {[%emt 0:04:29]} 9. Rc1 {[%emt 0:06:04]} Nbd7 {[%emt 0:06:12]} 10. Qb3 {[%emt 0:22:42]} d4 {[%emt 0:09:10]} 11. Na4 {[%emt 0:00:57]} Bd5 {[%emt 0:00:41]} 12. Qc2 {[%emt 0:01:23]} e5 {[%emt 0:04:23]} 13. Bg5 {[%emt 0:13:33]} e4 {[%emt 0:04:56]} 14. Nd2 {[%emt 0:04:10]} e3 {[%emt 0:09:19]} 15. Nf3 {[%emt 0:00:14]} Qa5+ {[%emt 0:00:16]} 16. Kd1 {[%emt 0:00:52]} Ne4 {[%emt 0:00:22]} 0-1

[Event "Romanian-ch Youth Girls U14 2024"]
[Site "Eforie Nord"]
[Date "2024.04.12"]
[Round "1.2"]
[White "Semenova, Vasylyna"]
[Black "Vajda, Iulia-Alexandra"]
[Result "1-0"]
[ECO "E32"]
[WhiteElo "1827"]
[BlackElo "1612"]
[Annotator "NA RC COMBH"]
[PlyCount "104"]
[EventDate "2024.04.10"]
[EventType "swiss"]
[EventCountry "ROU"]
[SourceTitle "playchess.com"]
[Source "ChessBase"]
[SourceQuality "1"]
[TimeControl "5400+30"]

1. d4 {[%emt 0:00:02]} Nf6 {[%emt 0:00:07]} 2. c4 {[%emt 0:00:05]} e6 {[%emt 0:00:03]} 3. Nc3 {[%emt 0:00:09]} Bb4 {[%emt 0:00:04]} 4. Qc2 {[%emt 0:00:09]} b6 {[%emt 0:04:01]} 5. Bg5 {[%emt 0:02:21]} Bb7 {[%emt 0:06:29]} 6. e3 {[%emt 0:11:20]} h6 {[%emt 0:03:29]} 7. Bh4 {[%emt 0:00:11]} g5 {[%emt 0:12:31]} 8. Bg3 {[%emt 0:00:10]} Ne4 {[%emt 1:07:46]} 9. f3 {[%emt 0:04:59]} Bxc3+ {[%emt 0:00:00]} 10. bxc3 {[%emt 0:00:13]} Nxg3 {[%emt 0:00:00]} 11. hxg3 {[%emt 0:00:05]} Qf6 {[%emt 0:00:00]} 12. g4 {[%emt 0:00:58]} d6 {[%emt 0:00:00]} 13. Bd3 {[%emt 0:00:15]} Nc6 {[%emt 0:00:00]} 14. Ne2 {[%emt 0:00:30]} O-O-O {[%emt 0:00:00]} 15. Ng3 {[%emt 0:05:26]} Qe7 {[%emt 0:00:00]} 16. Be4 {[%emt 0:10:22]} Kb8 {[%emt 0:00:00]} 17. Kf2 {[%emt 0:11:26]} Na5 {[%emt 0:00:00]} 18. Bxb7 {[%emt 0:00:56]} Nxb7 {[%emt 0:00:00]} 19. Rhb1 {[%emt 0:01:04]} Na5 {[%emt 0:00:00]} 20. Qa4 {[%emt 0:04:18]} Ka8 {[%emt 0:00:31]} 21. Rb5 {[%emt 0:01:15]} c6 {[%emt 0:01:55]} 22. Rb2 {[%emt 0:00:35]} Qc7 {[%emt 0:00:42]} 23. Rab1 {[%emt 0:02:00]} d5 {[%emt 0:01:53]} 24. cxd5 {[%emt 0:10:12]} cxd5 {[%emt 0:00:14]} 25. Ne2 {[%emt 0:04:05]} Nc4 {[%emt 0:00:40]} 26. Rb5 {[%emt 0:10:46]} Qc6 {[%emt 0:00:27]} 27. Qa6 {[%emt 0:02:14]} Qb7 {[%emt 0:00:40]} 28. Qxb7+ {[%emt 0:01:41]} Kxb7 {[%emt 0:00:06]} 29. R5b4 {[%emt 0:00:33]} Kc7 {[%emt 0:01:06]} 30. Rh1 {[%emt 0:00:24]} a5 {[%emt 0:00:27]} 31. Rbb1 {[%emt 0:00:07]} Nd2 {[%emt 0:00:36]} 32. Rbd1 {[%emt 0:00:21]} Nc4 {[%emt 0:00:04]} 33. Rh5 {[%emt 0:00:21]} Rh7 {[%emt 0:00:14]} 34. Rdh1 {[%emt 0:01:45]} Rdh8 {[%emt 0:00:09]} 35. e4 {[%emt 0:01:02]} dxe4 {[%emt 0:01:43]} 36. fxe4 {[%emt 0:00:06]} Nd6 {[%emt 0:00:20]} 37. e5 {[%emt 0:01:18]} Ne8 {[%emt 0:01:18]} 38. Ke3 {[%emt 0:00:53]} f6 {[%emt 0:00:24]} 39. Ke4 {[%emt 0:01:04]} Ng7 {[%emt 0:00:44]} 40. R5h2 {[%emt 0:00:49]} f5+ {[%emt 0:00:26]} 41. gxf5 {[%emt 0:00:16]} Nxf5 {[%emt 0:00:13]} 42. d5 {[%emt 0:03:19]} Kd7 {[%emt 0:00:39]} 43. g4 {[%emt 0:00:57]} Ng7 {[%emt 0:00:39]} 44. dxe6+ {[%emt 0:00:51]} Nxe6 {[%emt 0:00:11]} 45. Nd4 {[%emt 0:00:43]} Nxd4 {[%emt 0:00:52]} 46. cxd4 {[%emt 0:00:05]} b5 {[%emt 0:00:18]} 47. Kd5 {[%emt 0:00:29]} b4 {[%emt 0:00:24]} 48. e6+ {[%emt 0:00:19]} Ke7 {[%emt 0:00:05]} 49. Ke5 {[%emt 0:00:07]} a4 {[%emt 0:00:13]} 50. d5 {[%emt 0:00:11]} b3 {[%emt 0:00:53]} 51. axb3 {[%emt 0:00:30]} axb3 {[%emt 0:00:09]} 52. d6+ {[%emt 0:00:07]} Ke8 {[%emt 0:02:45]} 1-0

[Event "Romanian-ch Youth Girls U14 2024"]
[Site "Eforie Nord"]
[Date "2024.04.13"]
[Round "2.1"]
[White "Aldea, Maria-Antonia"]
[Black "Radu, Rebecca-Aimee"]
[Result "1-0"]
[ECO "D02"]
[WhiteElo "1894"]
[BlackElo "1658"]
[Annotator "NA RC COMBH"]
[PlyCount "69"]
[EventDate "2024.04.10"]
[EventType "swiss"]
[EventCountry "ROU"]
[SourceTitle "playchess.com"]
[Source "ChessBase"]
[SourceQuality "1"]
[TimeControl "5400+30"]

1. d4 {[%emt 0:00:04]} d5 {[%emt 0:00:05]} 2. Nf3 {[%emt 0:00:06]} Nc6 {[%emt 0:00:03]} 3. Bf4 {[%emt 0:06:22]} Bf5 {[%emt 0:06:52]} 4. c3 {[%emt 0:00:24]} e6 {[%emt 0:00:07]} 5. Nbd2 {[%emt 0:03:43]} h6 {[%emt 0:03:53]} 6. Ne5 {[%emt 0:03:56] D02: 1 d4 d5 2 Nf3 sidelines, including 2...Nf6 3 g3 and 2...Nf6 3 Bf4.} Nxe5 {[%emt 0:02:40]} 7. Bxe5 {[%emt 0:01:04]} Ne7 {[%emt 0:00:43]} 8. Qb3 {[%emt 0:03:55]} Rb8 {[%emt 0:03:42]} 9. Bg3 {[%emt 0:06:50]} Nc6 {[%emt 0:03:18]} 10. f3 {[%emt 0:03:46]} Bg6 {[%emt 0:02:50]} 11. e4 {[%emt 0:01:59]} Bd6 {[%emt 0:06:36]} 12. e5 {[%emt 0:03:46]} Be7 {[%emt 0:00:32]} 13. Be2 {[%emt 0:01:02]} Bh4 {[%emt 0:02:50]} 14. Nf1 {[%emt 0:03:55]} O-O {[%emt 0:03:32]} 15. Bxh4 {[%emt 0:16:20]} Qxh4+ {[%emt 0:00:22]} 16. g3 {[%emt 0:00:21]} Qd8 {[%emt 0:04:09]} 17. Ne3 {[%emt 0:01:23]} a6 {[%emt 0:02:40]} 18. O-O {[%emt 0:05:38]} b5 {[%emt 0:10:36]} 19. Qd1 {[%emt 0:01:53]} Na5 {[%emt 0:07:36]} 20. b4 {[%emt 0:07:21]} Nc4 {[%emt 0:01:49]} 21. Bxc4 {[%emt 0:09:06]} bxc4 {[%emt 0:00:54]} 22. Rf2 {[%emt 0:01:41]} Qd7 {[%emt 0:05:08]} 23. f4 {[%emt 0:02:01]} Be4 {[%emt 0:04:49]} 24. Qe1 {[%emt 0:02:37]} Bd3 {[%emt 0:02:45]} 25. g4 $17 {[%emt 0:00:30]} c6 {[%emt 0:03:22]} 26. Qd1 {[%emt 0:02:40]} Qe7 {[%emt 0:00:30]} 27. Qf3 {[%emt 0:00:30]} Qh4 {[%emt 0:00:30]} 28. Ng2 {[%emt 0:00:30]} Qe7 {[%emt 0:00:30]} 29. f5 {[%emt 0:00:30]} Be4 {[%emt 0:00:30]} 30. f6 {[%emt 0:00:30]} gxf6 {[%emt 0:00:30]} 31. exf6 {[%emt 0:00:30]} Qd6 {[%emt 0:00:30]} 32. Qh3 {[%emt 0:00:30]} Rfc8 {[%emt 0:00:30]} 33. Qxh6 {[%emt 0:00:30]} Qf8 {[%emt 0:00:30]} 34. Qh4 {[%emt 0:00:30]} Qd6 {[%emt 0:00:30]} 35. Re1 {[%emt 0:00:30]} 1-0

[Event "Romanian-ch Youth Girls U14 2024"]
[Site "Eforie Nord"]
[Date "2024.04.13"]
[Round "2.2"]
[White "Panici, Karla Marina"]
[Black "Semenova, Vasylyna"]
[Result "1/2-1/2"]
[ECO "B16"]
[WhiteElo "1684"]
[BlackElo "1827"]
[Annotator "NA RC COMBH"]
[PlyCount "115"]
[EventDate "2024.04.10"]
[EventType "swiss"]
[EventCountry "ROU"]
[SourceTitle "playchess.com"]
[Source "ChessBase"]
[SourceQuality "1"]
[TimeControl "5400+30"]

1. e4 {[%emt 0:00:03]} c6 {[%emt 0:00:07]} 2. d4 {[%emt 0:00:08]} d5 {[%emt 0:00:06]} 3. Nc3 {[%emt 0:00:08]} dxe4 {[%emt 0:00:08]} 4. Nxe4 {[%emt 0:00:07]} Nf6 {[%emt 0:00:08]} 5. Nxf6+ {[%emt 0:00:13]} gxf6 {[%emt 0:00:08]} 6. c3 {[%emt 0:00:21]} Bf5 {[%emt 0:00:38]} 7. Bd3 {[%emt 0:00:50]} Bg6 {[%emt 0:00:13]} 8. Nf3 {[%emt 0:01:22]} e6 {[%emt 0:00:13]} 9. O-O {[%emt 0:03:29]} Bd6 {[%emt 0:00:15]} 10. a4 {[%emt 0:04:48]} Qc7 {[%emt 0:00:31]} 11. h3 {[%emt 0:01:16]} Nd7 {[%emt 0:00:56]} 12. Be3 {[%emt 0:03:09]} O-O-O {[%emt 0:16:42]} 13. b4 {[%emt 0:05:07]} Kb8 $14 {[%emt 0:04:23]} 14. Qe2 {[%emt 0:05:33]} Bxd3 {[%emt 0:00:24]} 15. Qxd3 {[%emt 0:00:13]} Bf4 {[%emt 0:01:04]} 16. Bxf4 {[%emt 0:00:49]} Qxf4 {[%emt 0:00:18]} 17. Qe3 {[%emt 0:00:37]} Qf5 {[%emt 0:05:28]} 18. a5 {[%emt 0:10:07]} Rhg8 {[%emt 0:06:45]} 19. Nd2 {[%emt 0:06:40]} Qg5 {[%emt 0:00:42]} 20. Qxg5 {[%emt 0:00:48]} fxg5 {[%emt 0:01:02]} 21. Nc4 {[%emt 0:05:59]} g4 {[%emt 0:00:54]} 22. hxg4 {[%emt 0:07:20]} Rxg4 {[%emt 0:00:16]} 23. f3 {[%emt 0:04:29]} Rg7 {[%emt 0:00:29]} 24. Kf2 {[%emt 0:00:30]} Nf6 {[%emt 0:01:38]} 25. Ne5 {[%emt 0:04:54]} a6 {[%emt 0:04:01]} 26. Nd3 {[%emt 0:05:01]} Nd5 {[%emt 0:00:35]} 27. Rac1 {[%emt 0:00:23]} Rdg8 {[%emt 0:02:36]} 28. Rg1 {[%emt 0:02:04]} h5 {[%emt 0:02:23]} 29. c4 {[%emt 0:01:59]} Ne7 {[%emt 0:01:04]} 30. Nf4 {[%emt 0:01:34]} h4 {[%emt 0:01:12]} 31. Nh5 {[%emt 0:01:30]} Rg6 {[%emt 0:00:41]} 32. Rcd1 {[%emt 0:01:33]} Nf5 {[%emt 0:01:42]} 33. Nf4 {[%emt 0:01:10]} Rg5 {[%emt 0:01:11]} 34. Ne2 {[%emt 0:02:13]} Rxg2+ {[%emt 0:03:08]} 35. Rxg2 {[%emt 0:00:59]} Rxg2+ {[%emt 0:00:10]} 36. Kxg2 {[%emt 0:00:27]} Ne3+ {[%emt 0:00:07]} 37. Kh3 {[%emt 0:00:36]} Nxd1 {[%emt 0:00:08]} 38. Kxh4 {[%emt 0:04:57]} Ne3 {[%emt 0:00:16]} 39. c5 {[%emt 0:01:40]} Kc7 {[%emt 0:00:32]} 40. Kg5 {[%emt 0:02:10]} Kd7 {[%emt 0:00:13]} 41. Kf6 {[%emt 0:00:19]} Ke8 {[%emt 0:00:11]} 42. Nc3 {[%emt 0:00:21]} Nc2 {[%emt 0:02:42]} 43. Ne4 {[%emt 0:00:57]} Nxd4 {[%emt 0:01:18]} 44. Nd6+ {[%emt 0:00:23]} Kd7 {[%emt 0:00:13]} 45. f4 {[%emt 0:01:36]} Nc2 {[%emt 0:00:35]} 46. Kxf7 {[%emt 0:00:26]} Nxb4 {[%emt 0:01:12]} 47. Nc4 {[%emt 0:12:42]} Nd5 48. Ne5+ Kd8 49. Kxe6 Nxf4+ 50. Kd6 Kc8 51. Nxc6 bxc6 52. Kxc6 Ne6 53. Kb6 Nc7 54. Ka7 Kd8 55. Kb7 {[%emt 0:00:00]} Kd7 {[%emt 0:15:21]} 56. c6+ {[%emt 0:00:00]} Kd6 {[%emt 0:00:30]} 57. Kb6 {[%emt 0:00:00]} Nd5+ {[%emt 0:00:30]} 58. Kxa6 {[%emt 0:00:00]} 1/2-1/2

[Event "Romanian-ch Youth Girls U14 2024"]
[Site "Eforie Nord"]
[Date "2024.04.13"]
[Round "3.1"]
[White "Ciocirlan, Bianca-Alexandra"]
[Black "Aldea, Maria-Antonia"]
[Result "0-1"]
[ECO "B07"]
[WhiteElo "1740"]
[BlackElo "1894"]
[Annotator "NA RC COMBH"]
[PlyCount "56"]
[EventDate "2024.04.10"]
[EventType "swiss"]
[EventCountry "ROU"]
[SourceTitle "playchess.com"]
[Source "ChessBase"]
[SourceQuality "1"]
[TimeControl "5400+30"]

1. e4 {[%emt 0:00:02]} d6 {[%emt 0:00:06]} 2. d4 {[%emt 0:00:15]} Nf6 {[%emt 0:00:06]} 3. Nc3 {[%emt 0:00:19]} c6 {[%emt 0:00:11]} 4. f3 {[%emt 0:02:05]} Nbd7 {[%emt 0:00:09]} 5. Be3 {[%emt 0:00:14]} e5 {[%emt 0:00:16]} 6. dxe5 {[%emt 0:01:28]} dxe5 {[%emt 0:01:29]} 7. Qd2 {[%emt 0:02:06]} Qc7 {[%emt 0:02:34]} 8. O-O-O {[%emt 0:01:10]} Bc5 {[%emt 0:02:35]} 9. Bc4 {[%emt 0:03:08]} Bxe3 {[%emt 0:11:10]} 10. Qxe3 {[%emt 0:00:24]} b5 {[%emt 0:03:16]} 11. Bb3 {[%emt 0:01:09]} a5 {[%emt 0:01:26]} 12. a4 {[%emt 0:01:44]} b4 {[%emt 0:00:35]} 13. Nce2 {[%emt 0:00:22]} Ba6 {[%emt 0:06:30]} 14. Ng3 {[%emt 0:03:23]} g6 {[%emt 0:02:13]} 15. N1e2 {[%emt 0:04:50]} h5 {[%emt 0:03:48]} 16. h4 {[%emt 0:00:53]} Rd8 {[%emt 0:08:18]} 17. Qg5 {[%emt 0:09:53]} Rf8 {[%emt 0:15:02]} 18. f4 {[%emt 0:04:02]} Bxe2 {[%emt 0:04:01]} 19. f5 {[%emt 0:30:42]} Bxd1 {[%emt 0:10:50]} 20. fxg6 {[%emt 0:10:49]} Bg4 {[%emt 0:01:18]} 21. Rf1 {[%emt 0:03:10]} Qd6 {[%emt 0:07:01]} 22. gxf7+ {[%emt 0:16:48]} Rxf7 {[%emt 0:01:41]} 23. Bxf7+ {[%emt 0:01:16]} Kxf7 {[%emt 0:00:02]} 24. Nxh5 {[%emt 0:00:33]} Bxh5 {[%emt 0:02:45]} 25. Qxh5+ {[%emt 0:00:07]} Ke7 {[%emt 0:00:07]} 26. Qf5 {[%emt 0:01:04]} Qe6 {[%emt 0:02:41]} 27. Qg5 {[%emt 0:01:15]} Rg8 {[%emt 0:00:56]} 28. Qh6 {[%emt 0:00:42]} Rxg2 {[%emt 0:00:25]} 0-1

[Event "Romanian-ch Youth Girls U14 2024"]
[Site "Eforie Nord"]
[Date "2024.04.13"]
[Round "3.2"]
[White "Nitu, Maria Roxana"]
[Black "Semenova, Vasylyna"]
[Result "0-1"]
[ECO "B12"]
[WhiteElo "1631"]
[BlackElo "1827"]
[Annotator "NA RC COMBH"]
[PlyCount "121"]
[EventDate "2024.04.10"]
[EventType "swiss"]
[EventCountry "ROU"]
[SourceTitle "playchess.com"]
[Source "ChessBase"]
[SourceQuality "1"]
[TimeControl "5400+30"]

1. e4 {[%emt 0:00:30]} c6 {[%emt 0:00:30]} 2. d4 {[%emt 0:00:30]} d5 {[%emt 0:00:30]} 3. e5 {[%emt 0:00:30]} c5 {[%emt 0:00:28]} 4. dxc5 {[%emt 0:00:12]} Nc6 {[%emt 0:00:07]} 5. Nf3 {[%emt 0:00:39]} Bg4 {[%emt 0:08:33]} 6. c3 {[%emt 0:01:25]} e6 {[%emt 0:00:40]} 7. Be3 {[%emt 0:01:37]} Bxf3 {[%emt 0:01:26]} 8. Qxf3 {[%emt 0:10:45]} Nxe5 {[%emt 0:00:41]} 9. Bb5+ {[%emt 0:00:36]} Nc6 {[%emt 0:00:14]} 10. Nd2 {[%emt 0:02:03]} a6 {[%emt 0:01:04]} 11. Ba4 {[%emt 0:02:03]} Nf6 {[%emt 0:03:58]} 12. O-O {[%emt 0:04:16]} Be7 {[%emt 0:00:28]} 13. Qg3 {[%emt 0:04:58]} O-O {[%emt 0:06:43]} 14. Bxc6 {[%emt 0:08:26]} bxc6 {[%emt 0:00:09]} 15. Bh6 {[%emt 0:00:36]} Ne8 {[%emt 0:00:16]} 16. Be3 {[%emt 0:03:05]} Qb8 {[%emt 0:08:10]} 17. Qxb8 {[%emt 0:03:06]} Rxb8 {[%emt 0:00:05]} 18. Rab1 {[%emt 0:17:26]} Nf6 {[%emt 0:00:23]} 19. h3 {[%emt 0:03:48]} Nd7 {[%emt 0:00:47]} 20. Nb3 {[%emt 0:02:41]} Rfc8 {[%emt 0:01:09]} 21. Rfc1 {[%emt 0:07:24]} e5 {[%emt 0:00:21]} 22. f4 {[%emt 0:01:37]} f6 {[%emt 0:00:08]} 23. g4 {[%emt 0:06:23]} Ra8 {[%emt 0:00:53]} 24. h4 {[%emt 0:07:31]} a5 {[%emt 0:00:29]} 25. g5 {[%emt 0:02:44]} a4 {[%emt 0:00:09]} 26. Nd2 {[%emt 0:01:04]} Bxc5 {[%emt 0:00:27]} 27. Bxc5 {[%emt 0:03:14]} Nxc5 {[%emt 0:00:06]} 28. fxe5 {[%emt 0:01:18]} fxe5 {[%emt 0:00:08]} 29. Re1 {[%emt 0:00:41]} e4 {[%emt 0:00:29]} 30. c4 {[%emt 0:00:40]} Rab8 {[%emt 0:00:24]} 31. b3 {[%emt 0:02:38]} axb3 {[%emt 0:00:34]} 32. axb3 {[%emt 0:00:54]} Nd3 {[%emt 0:00:16]} 33. Re3 {[%emt 0:00:43]} Rb4 {[%emt 0:00:15]} 34. Kg2 {[%emt 0:00:50]} Rcb8 {[%emt 0:00:09]} 35. Rf1 {[%emt 0:00:34]} Ra8 {[%emt 0:00:30]} 36. Kg3 {[%emt 0:00:31]} Ra2 {[%emt 0:00:22]} 37. Re2 {[%emt 0:00:30]} Rb8 {[%emt 0:10:34]} 38. h5 {[%emt 0:00:27]} e3 {[%emt 0:01:16]} 39. Rd1 {[%emt 0:00:34]} Rxd2 {[%emt 0:00:20]} 40. Rexd2 {[%emt 0:00:18]} exd2 {[%emt 0:00:07]} 41. Rxd2 {[%emt 0:00:25]} Rxb3 {[%emt 0:00:08]} 42. Kg4 {[%emt 0:00:46]} Ne5+ {[%emt 0:00:19]} 43. Kf5 {[%emt 0:00:23]} Nxc4 {[%emt 0:00:05]} 44. Re2 {[%emt 0:00:37]} Rf3+ {[%emt 0:00:40]} 45. Kg4 {[%emt 0:00:19]} Re3 {[%emt 0:00:04]} 46. Ra2 {[%emt 0:00:16]} Re8 {[%emt 0:00:14]} 47. Kf5 {[%emt 0:00:31]} Nd6+ {[%emt 0:00:05]} 48. Kg4 {[%emt 0:00:23]} d4 {[%emt 0:00:21]} 49. Rc2 {[%emt 0:00:43]} Rc8 {[%emt 0:00:24]} 50. Kf4 {[%emt 0:00:20]} c5 {[%emt 0:00:08]} 51. Ke5 {[%emt 0:00:12]} Nf7+ {[%emt 0:00:09]} 52. Kf5 {[%emt 0:01:08]} c4 {[%emt 0:00:07]} 53. g6 {[%emt 0:00:21]} hxg6+ {[%emt 0:00:09]} 54. hxg6 {[%emt 0:00:05]} Nd6+ {[%emt 0:00:06]} 55. Ke5 {[%emt 0:00:15]} d3 {[%emt 0:00:05]} 56. Rc1 {[%emt 0:01:15]} d2 {[%emt 0:00:07]} 57. Rd1 {[%emt 0:00:12]} c3 {[%emt 0:00:03]} 58. Kxd6 {[%emt 0:00:32]} c2 {[%emt 0:00:06]} 59. Rxd2 {[%emt 0:00:31]} c1=Q {[%emt 0:00:06]} 60. Rd5 {[%emt 0:00:16]} Qf4+ {[%emt 0:01:05]} 61. Ke6 {[%emt 0:00:34]} 0-1

[Event "Romanian-ch Youth Girls U14 2024"]
[Site "Eforie Nord"]
[Date "2024.04.14"]
[Round "4.1"]
[White "Aldea, Maria-Antonia"]
[Black "Panici, Karla Marina"]
[Result "1/2-1/2"]
[ECO "A07"]
[WhiteElo "1894"]
[BlackElo "1684"]
[Annotator "NA RC"]
[PlyCount "45"]
[EventDate "2024.04.10"]
[EventType "swiss"]
[EventCountry "ROU"]
[SourceTitle "playchess.com"]
[Source "ChessBase"]
[SourceQuality "1"]
[TimeControl "5400+30"]

1. Nf3 {[%emt 0:00:04]} d5 {[%emt 0:00:10]} 2. g3 {[%emt 0:00:06]} Nf6 {[%emt 0:00:07]} 3. Bg2 {[%emt 0:00:05]} e6 {[%emt 0:00:07]} 4. O-O {[%emt 0:00:21]} Be7 {[%emt 0:00:08]} 5. d4 {[%emt 0:00:14]} b6 {[%emt 0:00:06]} 6. c4 {[%emt 0:00:43]} c6 {[%emt 0:00:10]} 7. Qc2 {[%emt 0:00:22]} Ba6 {[%emt 0:00:22]} 8. Nbd2 {[%emt 0:04:19]} O-O {[%emt 0:01:02]} 9. Re1 {[%emt 0:04:09]} Nbd7 {[%emt 0:02:22]} 10. b3 {[%emt 0:05:16]} Rc8 {[%emt 0:03:39]} 11. e4 {[%emt 0:03:34]} c5 {[%emt 0:03:31]} 12. exd5 {[%emt 0:18:11]} exd5 {[%emt 0:07:08]} 13. Bb2 {[%emt 0:00:21]} Re8 {[%emt 0:05:04]} 14. Rac1 {[%emt 0:07:28]} h6 {[%emt 0:04:19]} 15. Qb1 {[%emt 0:05:50]} cxd4 {[%emt 0:15:51]} 16. Bxd4 {[%emt 0:15:15]} Bc5 {[%emt 0:08:08]} 17. Rxe8+ {[%emt 0:12:17]} Qxe8 {[%emt 0:03:11]} 18. Bxc5 {[%emt 0:04:24]} Nxc5 {[%emt 0:05:53]} 19. b4 {[%emt 0:00:58]} Ne6 {[%emt 0:04:06]} 20. b5 {[%emt 0:07:53]} Bb7 {[%emt 0:01:19]} 21. cxd5 {[%emt 0:01:04]} Bxd5 {[%emt 0:01:44]} 22. Re1 {[%emt 0:03:44]} Qf8 {[%emt 0:05:03]} 23. Ne5 {[%emt 0:03:34]} 1/2-1/2

[Event "Romanian-ch Youth Girls U14 2024"]
[Site "Eforie Nord"]
[Date "2024.04.14"]
[Round "4.2"]
[White "Semenova, Vasylyna"]
[Black "Kiss, Abigel"]
[Result "1-0"]
[ECO "D31"]
[WhiteElo "1827"]
[BlackElo "1622"]
[Annotator "NA RC"]
[PlyCount "107"]
[EventDate "2024.04.10"]
[EventType "swiss"]
[EventCountry "ROU"]
[SourceTitle "playchess.com"]
[Source "ChessBase"]
[SourceQuality "1"]
[TimeControl "5400+30"]

1. d4 {[%emt 0:00:01]} d5 {[%emt 0:00:05]} 2. c4 {[%emt 0:00:05]} e6 {[%emt 0:00:03]} 3. Nc3 {[%emt 0:00:06]} c6 {[%emt 0:00:05]} 4. cxd5 {[%emt 0:00:07]} exd5 {[%emt 0:00:09]} 5. Qc2 {[%emt 0:00:05]} Bd6 {[%emt 0:00:25]} 6. Nf3 {[%emt 0:00:16]} h6 {[%emt 0:00:47]} 7. g3 {[%emt 0:00:40]} Nf6 {[%emt 0:00:27]} 8. Bf4 {[%emt 0:00:17]} Bg4 {[%emt 0:11:35]} 9. Bg2 {[%emt 0:03:53]} O-O {[%emt 0:05:03]} 10. Bxd6 {[%emt 0:00:10]} Qxd6 {[%emt 0:00:11]} 11. Ne5 {[%emt 0:00:23]} Nbd7 {[%emt 0:02:46]} 12. Nxg4 {[%emt 0:00:30]} Nxg4 {[%emt 0:00:17]} 13. O-O {[%emt 0:00:21]} Rfe8 {[%emt 0:01:34]} 14. a3 {[%emt 0:00:25]} Rad8 {[%emt 0:03:47]} 15. b4 {[%emt 0:00:27]} a6 {[%emt 0:00:55]} 16. Na4 {[%emt 0:04:40]} Ngf6 {[%emt 0:08:19]} 17. Nc5 {[%emt 0:00:24]} Nxc5 {[%emt 0:00:39]} 18. bxc5 {[%emt 0:00:22]} Qc7 {[%emt 0:01:21]} 19. Rfb1 {[%emt 0:01:00]} Re7 {[%emt 0:02:17]} 20. Rb2 {[%emt 0:00:20]} Qb8 {[%emt 0:06:43]} 21. Rab1 {[%emt 0:00:05]} Rdd7 {[%emt 0:01:02]} 22. Rb6 {[%emt 0:00:36]} Qa7 {[%emt 0:02:06]} 23. R1b2 {[%emt 0:00:20]} Rc7 {[%emt 0:02:19]} 24. Qb1 {[%emt 0:00:21]} g6 {[%emt 0:03:22]} 25. e3 {[%emt 0:01:12]} Kg7 {[%emt 0:00:29]} 26. R2b3 {[%emt 0:00:19]} h5 {[%emt 0:08:18]} 27. h4 {[%emt 0:07:25]} Qa8 {[%emt 0:08:37]} 28. Rb2 {[%emt 0:04:44]} Qc8 {[%emt 0:01:51]} 29. Bf3 {[%emt 0:00:28]} Qa8 {[%emt 0:05:40]} 30. a4 {[%emt 0:00:11]} Qc8 {[%emt 0:01:24]} 31. Kg2 {[%emt 0:00:18]} Qa8 {[%emt 0:08:08]} 32. Be2 {[%emt 0:00:19]} Qc8 {[%emt 0:00:46]} 33. Bd3 {[%emt 0:02:00]} Kh7 {[%emt 0:07:48]} 34. R6b3 {[%emt 0:00:51]} Kg7 {[%emt 0:00:52]} 35. Re2 {[%emt 0:00:38]} Ne4 {[%emt 0:01:03]} 36. Bxe4 {[%emt 0:00:29]} dxe4 {[%emt 0:00:59]} 37. Reb2 {[%emt 0:01:21]} Qd7 {[%emt 0:00:33]} 38. Qd1 {[%emt 0:00:17]} Qd5 {[%emt 0:00:49]} 39. Rb4 {[%emt 0:00:42]} Rcd7 {[%emt 0:02:03]} 40. Qb1 {[%emt 0:00:15]} Qf5 {[%emt 0:00:55]} 41. R2b3 {[%emt 0:04:35]} Rc7 {[%emt 0:00:51]} 42. Qb2 {[%emt 0:00:50]} Kh6 {[%emt 0:00:51]} 43. d5 {[%emt 0:01:24]} Re5 {[%emt 0:01:31]} 44. d6 {[%emt 0:00:21]} Rd7 {[%emt 0:00:46]} 45. Rxb7 {[%emt 0:00:39]} Re8 {[%emt 0:00:48]} 46. Rxd7 {[%emt 0:00:32]} Qxd7 {[%emt 0:00:06]} 47. Rb7 {[%emt 0:02:27]} Qf5 {[%emt 0:00:48]} 48. Re7 {[%emt 0:01:00]} Rd8 {[%emt 0:00:49]} 49. Qb7 {[%emt 0:03:14]} Qf3+ {[%emt 0:00:13]} 50. Kg1 {[%emt 0:00:06]} Qd1+ {[%emt 0:00:07]} 51. Kh2 {[%emt 0:00:07]} Rf8 {[%emt 0:01:06]} 52. Rxf7 {[%emt 0:00:12]} Rxf7 {[%emt 0:00:17]} 53. Qxf7 {[%emt 0:00:06]} Qd2 {[%emt 0:00:44]} 54. d7 {[%emt 0:00:07]} 1-0